Cogmind - Beta 11.1 @@@ ROGUE MODE // 2022.05.18 @ 22:16:22 Player: ChromeKnight Result: Destroyed by S-10 Pest with Light Assault Rifle Performance ------------- Evolutions (0) 0 Regions Visited (2) 400 Robots Destroyed (11) 55 Value Destroyed (197) 197 Prototype IDs (0) 0 Alien Tech Used (0) 0 Bonus (0) 0 TOTAL SCORE: 652 Bonus ------- None Cogmind --------- Core Integrity 0/250 Matter 192/300 Energy 100/100 System Corruption 6% Temperature Cool (1) Movement Hovering (60) Location -10/Mines Parts ------- > --- POWER (1) -------- (None) > --- PROPULSION (2) --- Hover Unit > --- UTILITY (2) ------ Small Storage Unit > --- WEAPON (2) ------- (None) > --- INVENTORY (8) ---- Light Ion Engine Light Nuclear Core Hover Unit Visual Processing Unit Signal Interpreter Peak State ------------ > --- POWER ------------ Ion Engine > --- PROPULSION ------- Light Treads Light Treads > --- UTILITY ---------- Small Storage Unit > --- WEAPON ----------- Assault Rifle Light Assault Rifle > --- INVENTORY -------- Light Ion Engine Light Nuclear Core Hover Unit Hover Unit Visual Processing Unit Sensor Array Signal Interpreter [Rating: 7] Favorites ----------- Power Ion Engine Engine Ion Engine Propulsion Light Treads Treads Light Treads Hover Unit Hover Unit Utility Small Storage Unit Device Sensor Array Storage Small Storage Unit Weapon Light Assault Rifle Ballistic Gun Light Assault Rifle Launcher Grenade Launcher Build | -11 -10 -10 ------- Run | Scr Mat Min Slots Evolved . | . . . Power . | . . . Propulsion . | . . . Utility . | . . . Weapon . | . . . Parts Attached 11 | 6 3 2 Power 1 | 1 . . Engine 1 | 1 . . Core . | . . . Reactor . | . . . Propulsion 4 | 2 . 2 Treads 2 | 2 . . Leg . | . . . Wheel . | . . . Hover 2 | . . 2 Flight . | . . . Utility 2 | 1 1 . Device 1 | . 1 . Storage 1 | 1 . . Processor . | . . . Hackware . | . . . Protection . | . . . Artifact . | . . . Weapon 4 | 2 2 . Energy Gun . | . . . Energy Cannon . | . . . Ballistic Gun 3 | 2 1 . Ballistic Cannon . | . . . Launcher 1 | . 1 . Special Weapon . | . . . Impact Weapon . | . . . Slashing Weapon . | . . . Piercing Weapon . | . . . Special Melee Weapon . | . . . Unidentified Prototypes . | . . . Parts Lost 6 | . 1 5 Power . | . . . Propulsion 2 | . . 2 Utility 1 | . . 1 Weapon 3 | . 1 2 Highest Loss Streak 4 | . 1 4 To Critical Strikes . | . . . Average Slot Usage (%) 81 | . 84 77 Engine 3 | . 6 . Treads 25 | . 28 23 Device 10 | . 7 13 Storage 14 | . 14 14 Ballistic Gun 26 | . 27 24 Naked Turns . | . . . Heaviest Build 13 | 13 13 9 Greatest Support 40 | 40 40 40 Greatest Overweight (x) 1 | 1 . 1 Average Overweight (x) . | . . . Largest Inventory Capacity 8 | 8 8 8 Average Capacity 7 | 7 8 8 Most Carried 7 | 1 7 7 Average Carried 5 | . 4 6 Final Capacity 8 | 8 8 8 Final Carried 7 | 1 7 5 Class Distribution -------------------- 100% | Mutant Dominant Class ---------------- Mutant | -10/Materials Mutant | -10/Mines Resources | -11 -10 -10 ----------- Run | Scr Mat Min Matter Collected 270 | 222 3 45 Remotely . | . . . Salvage Created 177 | . 106 71 Parts 18 | . 13 5 Haulers Intercepted . | . . . Recyclers Shooed 1 | . 1 . Parts Field Recycled . | . . . Retrieved Matter . | . . . Parts Self-Destructed . | . . . Prevented . | . . . Kills | -11 -10 -10 ------- Run | Scr Mat Min Combat Hostiles Destroyed 10 | . 5 5 Guns 7 | . 2 5 AOE 3 | . 3 . Classes Destroyed 3 | . 3 . Watcher 1 | . 1 . Swarmer 8 | . 3 5 Grunt 2 | . 2 . Best Kill Streak 6 | . 6 3 Combat Bots Only 5 | . 5 3 Max Kills in Single Turn 1 | . 1 1 Gunslinging . | . . . Exploded 1 | . 1 . Melee . | . . . Uniques/NPCs Destroyed . | . . . Combat | -11 -10 -10 -------- Run | Scr Mat Min Damage Taken 881 | . 238 643 Core 250 | . 9 241 Absorbed by Shields . | . . . Core Remaining (%) 100 | 100 . . Volleys Fired 31 | . 16 15 Largest 2 | . 2 2 Hottest 50 | . 50 40 Shots Fired 55 | . 30 25 Gun 51 | . 26 25 Cannon . | . . . Launcher 4 | . 4 . Special . | . . . Kinetic 51 | . 26 25 Thermal . | . . . Explosive 4 | . 4 . Electromagnetic . | . . . Robot Hit Streak 9 | . 3 9 Robot Miss Streak 3 | . 3 3 Penetration Max . | . . . Secondary Targets 2 | . . 2 Max Gunslinging Chain 1 | . . 1 Shots Hit Robots 32 | . 16 16 Core Hits 23 | . 14 9 Critical Kills 1 | . 1 . Critical Parts Destroyed . | . . . Critical Strikes 1 | . 1 . Destroy 1 | . 1 . Melee Attacks . | . . . Impact . | . . . Slashing . | . . . Piercing . | . . . Sneak Attacks . | . . . Combat Hostiles . | . . . Follow-up Attacks . | . . . Damage Inflicted 569 | . 366 203 Guns 322 | . 148 174 Cannons . | . . . Explosions 218 | . 218 . Melee . | . . . Ramming 29 | . . 29 Kinetic 322 | . 148 174 Thermal . | . . . Explosive 218 | . 218 . Electromagnetic . | . . . Impact . | . . . Slashing . | . . . Piercing . | . . . Highest Corruption 6 | . . 6 Average Corruption 5 | . . 5 Corruption Purged . | . . . Corruption Blocked . | . . . Effects 1 | . . 1 Parts Rejected 1 | . . 1 Overload Shots . | . . . Overflow Damage 2 | . 2 . Projectiles . | . . . Explosions 2 | . 2 . Melee . | . . . Knockbacks . | . . . Impact . | . . . Kinetic . | . . . Secondary . | . . . Self-Inflicted Damage 71 | . 62 9 Shots 3 | . 3 . Rammed 13 | . . 13 Targets Rammed 13 | . . 13 Kicked . | . . . Crushed . | . . . Highest Temperature 29 | . 29 . Average Temperature 9 | . 9 . Received Heat Transfer 51 | . 51 . Siege Activations . | . . . Robots Corrupted . | . . . Combat Hostiles . | . . . Parts Fried . | . . . Impact Corruptions . | . . . Robots Melted . | . . . Combat Hostiles . | . . . Parts Melted . | . . . Heat Transferred . | . . . Parts Sabotaged . | . . . Parts Stolen . | . . . Parts Stripped . | . . . Power Chain Reactions . | . . . Missiles Intercepted . | . . . Alert | -11 -10 -10 ------- Run | Scr Mat Min Peak Influence 265 | . 265 115 Initial 25 | . . 25 Average 103 | . 166 49 Maximum Alert Level 1 | . 1 . Low Security (%) 71 | 100 43 100 Level 1 28 | . 56 . Level 2 . | . . . Level 3 . | . . . Level 4 . | . . . Level 5 . | . . . High Security . | . . . Max Security . | . . . Squads Dispatched . | . . . Investigation . | . . . Extermination . | . . . Reinforcement . | . . . Assault . | . . . Garrison . | . . . Intercept . | . . . Searches Triggered . | . . . Construction Impeded . | . . . Haulers Reinforced . | . . . Active Scanning Responses . | . . . Cargo Convoy Interrupts . | . . . Stealth | -11 -10 -10 --------- Run | Scr Mat Min Distress Signals . | . . . Communications Jammed . | . . . Distress Signals . | . . . Times Spotted 19 | . 8 11 Peak Tracking Total 4 | . 3 4 Tactical Retreats . | . . . Traps | -11 -10 -10 ------- Run | Scr Mat Min Traps Triggered . | . . . Indirectly . | . . . Trap Hack Attempts . | . . . Triggered . | . . . Disarmed . | . . . Reprogrammed . | . . . Reused . | . . . Traps Extracted . | . . . Installed . | . . . Triggered . | . . . Machines | -11 -10 -10 ---------- Run | Scr Mat Min Machines Disabled 2 | . 2 . Max in Single Turn 2 | . 2 . Machines Sabotaged . | . . . Garrisons Compromised . | . . . Overloaded Fab Kills . | . . . Hacking | -11 -10 -10 --------- Run | Scr Mat Min Machines Accessed 5 | . 5 . Terminals 5 | . 5 . Fabricators . | . . . Repair Stations . | . . . Recycling Units . | . . . Scanalyzers . | . . . Garrison Access . | . . . Total Hacks 13 | . 13 . Successful 5 | . 5 . Failed 8 | . 8 . Catastrophic . | . . . Database Lockouts . | . . . Manual 13 | . 13 . Terminals 13 | . 13 . Fabricators . | . . . Repair Stations . | . . . Recycling Units . | . . . Scanalyzers . | . . . Garrison Access . | . . . Terminal Hacks . | . . . Fabricator Hacks . | . . . Repair Station Hacks . | . . . Recycling Unit Hacks . | . . . Scanalyzer . | . . . Garrison Access Hacks . | . . . Unauthorized Hacks 5 | . 5 . Terminals 5 | . 5 . Botnet 4 | . 4 . Operators 1 | . 1 . Fabricators . | . . . Repair Stations . | . . . Recycling Units . | . . . Scanalyzers . | . . . Garrison Access . | . . . Data Cores Recovered . | . . . Used . | . . . Hacking Detections 3 | . 3 . Full Trace Events . | . . . Feedback Events . | . . . Feedback Blocked . | . . . Robot Schematics Acquired . | . . . Robots Built . | . . . Authchips . | . . . Time . | . . . Total Robot Build Rating . | . . . Part Schematics Acquired . | . . . Parts Built . | . . . Authchips . | . . . Time . | . . . Total Part Build Rating . | . . . Parts Repaired . | . . . Time . | . . . Parts Recycled . | . . . Recycled Matter . | . . . Retrieved Matter . | . . . Retrieved Components . | . . . Parts Scanalyzed . | . . . Part Schematics Acquired . | . . . Parts Damaged . | . . . Bothacking | -11 -10 -10 ------------ Run | Scr Mat Min Used RIF Installer . | . . . Robots Hacked . | . . . Non-combat . | . . . Combat . | . . . Robot Hacks Applied . | . . . Relay Couplers Released . | . . . Fabnet Peak Effective % . | . . . Robots Rewired . | . . . Allies Hacked . | . . . Hacks Repelled . | . . . Allies | -11 -10 -10 -------- Run | Scr Mat Min Total Allies . | . . . Largest Group . | . . . Highest-Rated Group . | . . . Highest-Rated Ally . | . . . Total Orders . | . . . Ally Attacks . | . . . Total Damage . | . . . Kills . | . . . Allies Corrupted . | . . . Allies Melted . | . . . Intel | -11 -10 -10 ------- Run | Scr Mat Min Robot Analysis Total . | . . . Derelict Logs Recovered . | . . . Drone Launches . | . . . Drone Recoveries . | . . . Exploration | -11 -10 -10 ------------- Run | Scr Mat Min Turns Passed 895 | 86 449 360 Spaces Moved 463 | 49 245 169 Core 3 | 2 . 1 Treads 422 | 47 245 130 Legs . | . . . Wheels . | . . . Hover 38 | . . 38 Flight . | . . . Fastest Speed 50 | 50 160 56 Average Speed 151 | 156 160 136 Slowest Speed 160 | 160 160 160 Overloaded Moves . | . . . Propulsion Burnouts . | . . . Robots Hopped . | . . . Cave-ins Triggered . | . . . Exploration Rate (%) 36 | 5 52 52 Regions Visited 2 Branch Regions 1 Pre-discovered Areas . | . . . Known Exits Taken . | . . . Unknown Exits Taken 2 | 1 1 . Scrap Searched . | . . . Spaces Dug . | . . . Terrain Destroyed 16 | . 16 . Melee . | . . . Projectile . | . . . AOE 16 | . 16 . Terrain Rammed . | . . . Walls Destroyed . | . . . Machines Disabled . | . . . Actions | -11 -10 -10 --------- Run | Scr Mat Min Total 601 | 55 275 271 Wait 75 | . 3 72 Move 461 | 48 244 169 Hop . | . . . Pick Up 9 | 1 8 . Fast Attach 6 | 6 . . Attach 4 | . 2 2 Detach . | . . . Swap 1 | . 1 . Drop 1 | . 1 . Fire 31 | . 16 15 Melee . | . . . Ram 6 | . . 6 Kick . | . . . Crush 7 | . . 7 Escape Stasis . | . . . Rewire . | . . . Trap . | . . . Miscellaneous . | . . . Route ------- -11/Scrapyard -10/Materials (discovered 3 exits: [*Mat x2] / [*Min]) -10/Mines (discovered 1 exit: [*Mat]) History --------- Turn | Location | Event 15 | -11/Scrapyard | Discovered new exit (range 15) 87 | -11/Scrapyard | Entered Materials 215 | -10/Materials | Discovered new exit (range 3) 303 | -10/Materials | Build established: Mutant 305 | -10/Materials | Discovered new exit (range 16) 433 | -10/Materials | Discovered new exit (range 9) 536 | -10/Materials | Entered Mines 616 | -10/Mines | Discovered new exit (range 10) 677 | -10/Mines | Excavation squad dispatched 677 | -10/Mines | A large section of the Mines collapsed 851 | -10/Mines | Core integrity fell below 50% 881 | -10/Mines | Core integrity fell below 20% 896 | -10/Mines | Destroyed by S-10 Pest with Light Assault Rifle Last Messages --------------- 00790_ T-07 Excavator destroyed. 00801_ Lgt. Treads destroyed. 00840_ Destroyed Flight Unit. 00843_ Lgt. Assault Rifle destroyed. 00843_ S-10 Pest destroyed. 00843_ K-01 Serf collects debris. 00849_ S-10 Pest destroyed. 00849_ R-06 Scavenger collects Lgt. Assault Rifle. 00852_ Assault Rifle destroyed. 00853_ Acquired 14 matter. 00854_ Slammed into S-10 Pest. 00864_ Lgt. Treads destroyed. 00866_ Slammed into S-10 Pest. 00870_ Destabilizing: System corrupted (+1). 00871_ Slammed into S-10 Pest. 00871_ Sensor Array destroyed. 00871_ System corrupted by crushing effect (+5). 00884_ S-10 Pest destroyed. 00887_ System corrupted: Hover Unit rejected. 00893_ Slammed into S-10 Pest. Map ----- +----------------------------------------------------+ | ???###### ###???????????????????## #???????????? | | ???# #???????????????????## #???????????? | | ???# [ #???????#######?????# % #???????????? | | ???# *%= #??????## #????## #???????????? | | ???# #??????# ?????## #???????????? | | ???# #??????# ??????# #???????????? | | ##?# """ #????????# ##????# #???????????? | | #?# """ #?????????# ###### #???????????? | | #?# """ #??????????# #???????????? | | #?##########??????????## ##### #???????????? | | #??????????????????????## =##??# ?????????? | | #???????????????????????# *%[#### ####????????? | | #???????????????????????## = #???????????? | | "#????????????????????###### ######???????????? | | "#?????????????# ##????????????????? | | "#???????????????????# ##### ##?????????????????? | | #???????????????????# ????# #??????????????????? | | #??????????????????## ????# #??????????????????? | | #???????????# ###### ##??# ###????????????????? | | ##???????????? ##?# ##???????????????? | | ???????????????????# ### #???????????????? | | ??????????????????## #???????????????? | | ??????????????????# """ ##???????????????? | | ?????????????????## """ #????????????????? | | ?????????????????# """= ss ##????????????????? | | ?????????????????# @ ##?????????????????? | | ?????????????????## #??????????????????? | | ??????????????????##### ##??????????????????? | | ??????????????????????## s ##???????????????????? | | ???????????????????????# ##??###??????????????? | | ???????????????????????## ### ##?????????????? | | ????????????????????????## ##????????????? | | ?????????????????????????## #????????????? | | ??????????????????????????##### #????????????? | | ???????????????????????????????## ##????????????? | | ??????????????????????????????????##?????????????? | | ?????????????????????????????????????????????????? | | ?????????????????????????????????????????????????? | | ?????????????????????????????????????????????????? | | | | | | | | | | | | | | | | | | | | | | | +----------------------------------------------------+ Best States ------------- Heat Dissipation 25 Energy Generation 10 Energy Capacity 250 Matter Stores 262 Matter Capacity 300 Sight Range 16 Robot Scan Range 14 Terrain Scan Density 10 Evasion (%) 53 Recoil Reduction 2 Item Schematics ----------------- None Robot Schematics ------------------ None Fabricated ------------ Nothing Alien Tech Used ----------------- None Achievements -------------- None Challenges ------------ None Game ------ Seed TeslaMeleeBox Manual? 0 Play Time 00:06:10 Cumulative 270.4 hours Start 2022.05.18 @ 22:11:38 End 2022.05.18 @ 22:16:22 Sessions 1 Manual Loads 0 Difficulty Rogue Special Mode None Game No. 511 Rogue 356 Adventurer 148 Explorer 7 Win Type - Total 10 Types 8/0/1/1/0/0/0/0/0 Lore% 71 Gallery% 83 Achievement% 66 Wizard Run 0 Options --------- ASCII 0 Keyboard 0 Movement Numpad Keybinds 0 Fullscreen 1 Font 18/SmallcapsGlow Map View 76x50 Tactical HUD 1 Map Filters NONE Filters NONE Steam 1 RUN: 0aad3d04-18f8-4214-b699-f37b4c9de14d